[Event "22nd ETCC Women 2019"]
[Site "Batumi"]
[Date "2019.10.28"]
[Round "5.19"]
[White "Cyfka, Karina"]
[Black "Skripchenko, Almira"]
[Result "1/2-1/2"]
[ECO "E16"]
[WhiteElo "2412"]
[BlackElo "2403"]
[Annotator "NA"]
[PlyCount "60"]
[EventDate "2019.10.24"]
[EventType "team-tourn"]
[EventCountry "GEO"]
[SourceTitle "playchess.com"]
[Source "ChessBase"]
[SourceQuality "1"]
[WhiteTeam "Poland"]
[BlackTeam "France"]
[WhiteTeamCountry "POL"]
[BlackTeamCountry "FRA"]
[TimeControl "40/5400+30:1800+30"]

1. d4 {[%emt 0:00:00]} Nf6 {[%emt 0:00:00]} 2. c4 {[%emt 0:00:00]} e6 {[%emt 0:00:01]} 3. Nf3 {[%emt 0:00:00]} Bb4+ {[%emt 0:00:51]} 4. Bd2 {[%emt 0:00:23]} Qe7 {[%emt 0:00:36]} 5. g3 {[%emt 0:02:56]} Nc6 {[%emt 0:02:02]} 6. e3 {[%emt 0:08:26]} d5 {[%emt 0:07:01]} 7. Bg2 {[%emt 0:16:37]} Bxd2+ {[%emt 0:20:27]} 8. Nbxd2 {[%emt 0:12:05]} dxc4 {[%emt 0:14:15]} 9. O-O {[%emt 0:10:05]} e5 {[%emt 0:09:10]} 10. dxe5 {[%emt 0:03:26]} Nxe5 {[%emt 0:05:43]} 11. Nxe5 {[%emt 0:00:09]} Qxe5 {[%emt 0:00:03]} 12. Qa4+ {[%emt 0:06:21]} Bd7 {[%emt 0:05:20]} 13. Qb4 {[%emt 0:06:22]} Qb5 {[%emt 0:03:29]} 14. Qxb5 {[%emt 0:07:54]} Bxb5 {[%emt 0:00:05]} 15. Rfc1 {[%emt 0:00:04]} O-O-O {[%emt 0:06:20]} 16. Nxc4 {[%emt 0:00:09]} Bxc4 {[%emt 0:01:31]} 17. Rxc4 {[%emt 0:00:04]} Rd2 {[%emt 0:00:05]} 18. Rac1 {[%emt 0:05:19]} c6 {[%emt 0:06:12]} 19. b4 {[%emt 0:02:47]} Kb8 {[%emt 0:00:04]} 20. a4 {[%emt 0:00:52]} Rhd8 {[%emt 0:01:21]} 21. Bf3 {[%emt 0:00:15]} a6 {[%emt 0:02:02]} 22. b5 {[%emt 0:01:37]} axb5 {[%emt 0:04:11]} 23. axb5 {[%emt 0:00:09]} cxb5 {[%emt 0:00:03]} 24. Rb4 {[%emt 0:10:01]} Rc8 {[%emt 0:02:21]} 25. Rxc8+ {[%emt 0:00:28]} Kxc8 {[%emt 0:00:04]} 26. Rxb5 {[%emt 0:00:03]} Rd7 {[%emt 0:00:07]} 27. e4 {[%emt 0:00:50]} Rc7 {[%emt 0:00:20]} 28. e5 {[%emt 0:02:10]} Nd7 {[%emt 0:00:30]} 29. Bg4 {[%emt 0:00:41]} Kd8 {[%emt 0:01:03]} 30. f4 {[%emt 0:02:05]} Ke7 {[%emt 0:01:50]} 1/2-1/2

[Event "22nd ETCC Women 2019"]
[Site "Batumi"]
[Date "2019.10.28"]
[Round "5.20"]
[White "Navrotescu, Andreea-Cristiana"]
[Black "Sliwicka, Alicja"]
[Result "0-1"]
[ECO "A58"]
[WhiteElo "2241"]
[BlackElo "2307"]
[Annotator "NA"]
[PlyCount "88"]
[EventDate "2019.10.24"]
[EventType "team-tourn"]
[EventCountry "GEO"]
[SourceTitle "playchess.com"]
[Source "ChessBase"]
[SourceQuality "1"]
[WhiteTeam "France"]
[BlackTeam "Poland"]
[WhiteTeamCountry "FRA"]
[BlackTeamCountry "POL"]
[TimeControl "40/5400+30:1800+30"]

1. d4 {[%emt 0:00:00]} Nf6 {[%emt 0:00:00]} 2. c4 {[%emt 0:00:00]} c5 {[%emt 0:00:00]} 3. d5 {[%emt 0:00:00]} b5 {[%emt 0:00:00]} 4. cxb5 {[%emt 0:00:00]} a6 {[%emt 0:00:03]} 5. bxa6 {[%emt 0:00:00]} g6 {[%emt 0:00:08]} 6. Nc3 {[%emt 0:00:04]} Bg7 {[%emt 0:00:16]} 7. e4 {[%emt 0:00:33]} O-O {[%emt 0:00:28]} 8. e5 {[%emt 0:00:22]} Ne8 {[%emt 0:00:25]} 9. h4 {[%emt 0:00:06]} d6 {[%emt 0:17:10]} 10. e6 {[%emt 0:02:06]} fxe6 {[%emt 0:09:03]} 11. Nf3 {[%emt 0:06:19]} Nf6 {[%emt 0:02:56]} 12. Bc4 {[%emt 0:02:42]} Nbd7 {[%emt 0:04:57]} 13. dxe6 {[%emt 0:20:08]} Nb6 {[%emt 0:01:10]} 14. Bd3 {[%emt 0:01:29]} Bxe6 {[%emt 0:02:28]} 15. Ng5 {[%emt 0:05:30]} Qd7 {[%emt 0:05:47]} 16. Nxe6 {[%emt 0:08:19]} Qxe6+ {[%emt 0:00:10]} 17. Qe2 {[%emt 0:00:08]} Qxe2+ {[%emt 0:01:54]} 18. Bxe2 {[%emt 0:01:05]} d5 {[%emt 0:02:27]} 19. a4 {[%emt 0:08:19]} c4 {[%emt 0:03:57]} 20. a5 {[%emt 0:01:01]} Rxa6 {[%emt 0:04:51]} 21. Ra3 {[%emt 0:01:29]} Nbd7 {[%emt 0:04:37]} 22. b3 {[%emt 0:18:59]} Ne5 {[%emt 0:04:57]} 23. f4 {[%emt 0:05:30]} Nd3+ {[%emt 0:01:01]} 24. Bxd3 {[%emt 0:00:06]} cxd3 {[%emt 0:00:05]} 25. b4 {[%emt 0:02:59]} Re6+ {[%emt 0:01:16]} 26. Kf2 {[%emt 0:03:22]} Rc8 {[%emt 0:04:09]} 27. Kf3 {[%emt 0:01:29]} Ne4 {[%emt 0:05:53]} 28. Nb1 {[%emt 0:04:34]} Rc2 {[%emt 0:06:26]} 29. Rxd3 {[%emt 0:02:20]} Rf2+ {[%emt 0:01:12]} 30. Kg4 {[%emt 0:01:38]} Rxg2+ {[%emt 0:01:25]} 31. Kh3 {[%emt 0:00:32]} Ra2 {[%emt 0:01:18]} 32. Rf3 {[%emt 0:00:52]} Nf2+ {[%emt 0:01:22]} 33. Rxf2 {[%emt 0:00:04]} Rxf2 {[%emt 0:00:04]} 34. Rd1 {[%emt 0:02:21]} Ree2 {[%emt 0:04:15]} 35. Kg3 {[%emt 0:00:16]} Rg2+ {[%emt 0:02:11]} 36. Kf3 {[%emt 0:00:04]} Ref2+ {[%emt 0:02:02]} 37. Ke3 {[%emt 0:00:05]} Ra2 {[%emt 0:03:15]} 38. Kf3 {[%emt 0:01:06]} Rh2 {[%emt 0:00:46]} 39. Kg3 {[%emt 0:01:21]} Rhc2 {[%emt 0:01:32]} 40. Be3 {[%emt 0:00:00]} d4 {[%emt 0:00:00]} 41. Bxd4 {[%emt 0:06:30]} Bxd4 {[%emt 0:01:15]} 42. Rxd4 {[%emt 0:00:03]} Rcb2 {[%emt 0:01:15]} 43. Kf3 {[%emt 0:06:33]} Rxb1 {[%emt 0:00:37]} 44. Ke3 {[%emt 0:00:14]} Ra4 {[%emt 0:00:51]} 0-1

[Event "22nd ETCC Women 2019"]
[Site "Batumi"]
[Date "2019.10.28"]
[Round "5.20"]
[White "Polterauer, Chiara"]
[Black "Kyrkjebo, Marte B."]
[Result "1-0"]
[ECO "C44"]
[WhiteElo "2172"]
[BlackElo "1871"]
[Annotator "NA"]
[PlyCount "69"]
[EventDate "2019.10.24"]
[EventType "team-tourn"]
[EventCountry "GEO"]
[SourceTitle "playchess.com"]
[Source "ChessBase"]
[SourceQuality "1"]
[WhiteTeam "Austria"]
[BlackTeam "Norway"]
[WhiteTeamCountry "AUT"]
[BlackTeamCountry "NOR"]
[TimeControl "40/5400+30:1800+30"]

1. e4 {[%emt 0:00:00]} e5 {[%emt 0:00:00]} 2. Nf3 {[%emt 0:00:00]} Nc6 {[%emt 0:00:00]} 3. d4 {[%emt 0:00:00]} exd4 {[%emt 0:00:00]} 4. Nxd4 {[%emt 0:00:00]} Bb4+ {[%emt 0:00:00]} 5. Nc3 {[%emt 0:00:25]} Nf6 {[%emt 0:03:08]} 6. Nxc6 {[%emt 0:00:33]} bxc6 {[%emt 0:01:10]} 7. Bd3 {[%emt 0:00:11]} d5 {[%emt 0:10:38]} 8. exd5 {[%emt 0:00:18]} cxd5 {[%emt 0:00:41]} 9. O-O {[%emt 0:00:11]} O-O {[%emt 0:01:12]} 10. h3 {[%emt 0:00:16]} c6 {[%emt 0:03:06]} 11. Qf3 {[%emt 0:00:19]} Be6 {[%emt 0:03:55]} 12. Ne2 {[%emt 0:08:51]} Bd6 {[%emt 0:09:09]} 13. Bf4 {[%emt 0:05:41]} Bxf4 {[%emt 0:08:39]} 14. Nxf4 {[%emt 0:07:03]} Bd7 {[%emt 0:02:36]} 15. c4 {[%emt 0:07:31]} Qa5 {[%emt 0:12:35]} 16. cxd5 {[%emt 0:16:37]} cxd5 {[%emt 0:04:29]} 17. Rfd1 {[%emt 0:00:15]} Bc6 {[%emt 0:01:35]} 18. Rac1 {[%emt 0:08:22]} Rac8 {[%emt 0:04:05]} 19. a3 {[%emt 0:00:17]} Qb6 {[%emt 0:02:32]} 20. b4 {[%emt 0:03:40]} Rfd8 {[%emt 0:06:39]} 21. Nh5 {[%emt 0:12:02]} Nxh5 {[%emt 0:02:30]} 22. Qxh5 {[%emt 0:00:04]} g6 {[%emt 0:01:33]} 23. Qh4 {[%emt 0:01:21]} Kg7 {[%emt 0:03:35]} 24. Rc5 {[%emt 0:03:37]} Ba4 {[%emt 0:01:48]} 25. Rdc1 {[%emt 0:04:17]} Qb7 {[%emt 0:06:48]} 26. Qd4+ {[%emt 0:03:25]} Kg8 {[%emt 0:01:07]} 27. b5 {[%emt 0:03:16]} Rxc5 {[%emt 0:02:50]} 28. Rxc5 {[%emt 0:00:13]} Qb6 {[%emt 0:01:50]} 29. Qb4 {[%emt 0:01:19]} a5 {[%emt 0:04:54]} 30. bxa6 {[%emt 0:01:23]} Qxb4 {[%emt 0:00:39]} 31. axb4 {[%emt 0:00:05]} Ra8 {[%emt 0:00:58]} 32. b5 {[%emt 0:00:50]} Rb8 {[%emt 0:00:37]} 33. a7 {[%emt 0:00:45]} Ra8 {[%emt 0:00:11]} 34. b6 {[%emt 0:00:08]} Bd7 {[%emt 0:00:41]} 35. b7 {[%emt 0:00:23]} 1-0

[Event "22nd ETCC Women 2019"]
[Site "Batumi"]
[Date "2019.10.28"]
[Round "5.21"]
[White "Houska, Jovanka"]
[Black "Georgescu, Lena"]
[Result "1-0"]
[ECO "E15"]
[WhiteElo "2430"]
[BlackElo "2271"]
[Annotator "NA"]
[PlyCount "67"]
[EventDate "2019.10.24"]
[EventType "team-tourn"]
[EventCountry "GEO"]
[SourceTitle "playchess.com"]
[Source "ChessBase"]
[SourceQuality "1"]
[WhiteTeam "England"]
[BlackTeam "Switzerland"]
[WhiteTeamCountry "ENG"]
[BlackTeamCountry "SUI"]
[TimeControl "40/5400+30:1800+30"]

1. d4 {[%emt 0:00:00]} Nf6 {[%emt 0:00:00]} 2. Nf3 {[%emt 0:00:00]} e6 {[%emt 0:00:00]} 3. c4 {[%emt 0:00:00]} b6 {[%emt 0:00:00]} 4. g3 {[%emt 0:00:00]} Bb4+ {[%emt 0:00:01]} 5. Bd2 {[%emt 0:00:00]} Bxd2+ {[%emt 0:00:15]} 6. Qxd2 {[%emt 0:00:00]} Ba6 {[%emt 0:00:15]} 7. b3 {[%emt 0:00:05]} O-O {[%emt 0:00:09]} 8. Nc3 {[%emt 0:00:08]} d5 {[%emt 0:00:28]} 9. Bg2 {[%emt 0:00:04]} c5 {[%emt 0:01:03]} 10. Ne5 {[%emt 0:00:21]} Nbd7 {[%emt 0:01:08]} 11. Nxd7 {[%emt 0:01:16]} Qxd7 {[%emt 0:01:27]} 12. dxc5 {[%emt 0:03:57]} bxc5 {[%emt 0:04:08]} 13. cxd5 {[%emt 0:00:28]} exd5 {[%emt 0:02:22]} 14. Nxd5 {[%emt 0:05:54]} Nxd5 {[%emt 0:02:40]} 15. Qxd5 {[%emt 0:00:51]} Qe7 {[%emt 0:05:31]} 16. O-O {[%emt 0:05:01]} Rad8 {[%emt 0:20:15]} 17. Qc6 {[%emt 0:02:50]} Bxe2 {[%emt 0:04:43]} 18. Rfe1 {[%emt 0:04:03]} Rc8 {[%emt 0:07:07]} 19. Qa4 {[%emt 0:02:36]} Rfe8 {[%emt 0:05:50]} 20. Bf1 {[%emt 0:06:00]} Qf6 {[%emt 0:01:45]} 21. Rac1 {[%emt 0:04:48]} Qf3 {[%emt 0:03:24]} 22. Rxc5 {[%emt 0:20:24]} Rcd8 {[%emt 0:00:33]} 23. Rcc1 {[%emt 0:17:15]} h5 {[%emt 0:02:52]} 24. h4 {[%emt 0:01:22]} Re6 {[%emt 0:05:02]} 25. Bxe2 {[%emt 0:03:59]} Rxe2 {[%emt 0:00:08]} 26. Rxe2 {[%emt 0:00:02]} Qxe2 {[%emt 0:00:10]} 27. Qxa7 {[%emt 0:00:06]} Rd2 {[%emt 0:02:58]} 28. Qb8+ {[%emt 0:00:17]} Kh7 {[%emt 0:00:13]} 29. Qf4 {[%emt 0:00:04]} Rxa2 {[%emt 0:02:11]} 30. Qf5+ {[%emt 0:01:28]} Kh6 {[%emt 0:00:18]} 31. Rc8 {[%emt 0:10:41]} g6 {[%emt 0:03:09]} 32. Qf4+ {[%emt 0:00:41]} Kg7 {[%emt 0:00:30]} 33. Qd4+ {[%emt 0:00:04]} f6 {[%emt 0:00:19]} 34. Qd7+ {[%emt 0:00:07]} 1-0

[Event "22nd ETCC Women 2019"]
[Site "Batumi"]
[Date "2019.10.28"]
[Round "5.21"]
[White "Vega Gutierrez, Sabrina"]
[Black "Batsiashvili, Nino"]
[Result "1/2-1/2"]
[ECO "C54"]
[WhiteElo "2395"]
[BlackElo "2422"]
[Annotator "NA"]
[PlyCount "84"]
[EventDate "2019.10.24"]
[EventType "team-tourn"]
[EventCountry "GEO"]
[SourceTitle "playchess.com"]
[Source "ChessBase"]
[SourceQuality "1"]
[WhiteTeam "Spain"]
[BlackTeam "Georgia"]
[WhiteTeamCountry "ESP"]
[BlackTeamCountry "GEO"]
[TimeControl "40/5400+30:1800+30"]

1. e4 {[%emt 0:00:00]} e5 {[%emt 0:00:00]} 2. Nf3 {[%emt 0:00:00]} Nc6 {[%emt 0:00:00]} 3. Bc4 {[%emt 0:00:00]} Bc5 {[%emt 0:00:00]} 4. c3 {[%emt 0:00:11]} Nf6 {[%emt 0:00:36]} 5. d3 {[%emt 0:00:31]} d6 {[%emt 0:01:05]} 6. Bb3 {[%emt 0:03:37]} a6 {[%emt 0:03:19]} 7. Nbd2 {[%emt 0:00:43]} h6 {[%emt 0:01:14]} 8. Nf1 {[%emt 0:01:39]} Be6 {[%emt 0:12:41]} 9. Ng3 {[%emt 0:08:42]} O-O {[%emt 0:06:44]} 10. O-O {[%emt 0:01:06]} d5 {[%emt 0:00:48]} 11. d4 {[%emt 0:36:03]} dxe4 {[%emt 0:10:39]} 12. Nxe5 {[%emt 0:06:26]} Bxb3 {[%emt 0:08:39]} 13. axb3 {[%emt 0:00:36]} Nxe5 {[%emt 0:01:53]} 14. dxe5 {[%emt 0:01:41]} Qxd1 {[%emt 0:00:43]} 15. Rxd1 {[%emt 0:00:03]} Ng4 {[%emt 0:01:00]} 16. Nxe4 {[%emt 0:00:26]} Bb6 {[%emt 0:00:09]} 17. Bf4 {[%emt 0:09:51]} Rae8 {[%emt 0:01:18]} 18. b4 {[%emt 0:05:53]} Nxe5 {[%emt 0:02:33]} 19. Nc5 {[%emt 0:00:31]} Bxc5 {[%emt 0:00:42]} 20. bxc5 {[%emt 0:00:04]} c6 {[%emt 0:01:12]} 21. Kf1 {[%emt 0:01:58]} f6 {[%emt 0:02:37]} 22. Rd4 {[%emt 0:05:54]} Rf7 {[%emt 0:03:00]} 23. Re1 {[%emt 0:12:51]} Rfe7 {[%emt 0:02:35]} 24. Bxe5 {[%emt 0:02:11]} Rxe5 {[%emt 0:03:27]} 25. Rxe5 {[%emt 0:00:02]} Rxe5 {[%emt 0:00:06]} 26. Rd7 {[%emt 0:00:10]} Rxc5 {[%emt 0:00:29]} 27. Rxb7 {[%emt 0:00:03]} Kh7 {[%emt 0:12:24]} 28. Rb6 {[%emt 0:01:51]} a5 {[%emt 0:00:06]} 29. Ke2 {[%emt 0:00:13]} Kg6 {[%emt 0:03:12]} 30. Kd3 {[%emt 0:00:03]} Rd5+ {[%emt 0:01:24]} 31. Ke3 {[%emt 0:00:13]} Re5+ {[%emt 0:00:08]} 32. Kf3 {[%emt 0:01:01]} Rf5+ {[%emt 0:01:00]} 33. Ke3 {[%emt 0:00:01]} Re5+ {[%emt 0:00:06]} 34. Kd3 {[%emt 0:00:03]} Rd5+ {[%emt 0:00:08]} 35. Kc2 {[%emt 0:01:56]} Re5 {[%emt 0:08:24]} 36. Kd2 {[%emt 0:00:02]} Rd5+ {[%emt 0:00:18]} 37. Ke2 {[%emt 0:00:06]} Re5+ {[%emt 0:00:12]} 38. Kd1 {[%emt 0:00:40]} Rc5 {[%emt 0:01:17]} 39. Kd2 {[%emt 0:01:02]} h5 {[%emt 0:01:35]} 40. h4 {[%emt 0:00:00]} Kf5 {[%emt 0:00:00]} 41. b4 {[%emt 0:12:59]} axb4 {[%emt 0:00:30]} 42. Rxb4 {[%emt 0:05:35]} Rd5+ {[%emt 0:00:23]} 1/2-1/2

[Event "22nd ETCC Women 2019"]
[Site "Batumi"]
[Date "2019.10.28"]
[Round "5.22"]
[White "Khomeriki, Nino"]
[Black "Garcia Martin, Marta"]
[Result "0-1"]
[ECO "D38"]
[WhiteElo "2315"]
[BlackElo "2305"]
[Annotator "NA"]
[PlyCount "106"]
[EventDate "2019.10.24"]
[EventType "team-tourn"]
[EventCountry "GEO"]
[SourceTitle "playchess.com"]
[Source "ChessBase"]
[SourceQuality "1"]
[WhiteTeam "Georgia"]
[BlackTeam "Spain"]
[WhiteTeamCountry "GEO"]
[BlackTeamCountry "ESP"]
[TimeControl "40/5400+30:1800+30"]

1. d4 {[%emt 0:00:00]} Nf6 {[%emt 0:00:00]} 2. c4 {[%emt 0:00:00]} e6 {[%emt 0:00:00]} 3. Nf3 {[%emt 0:00:00]} d5 {[%emt 0:00:00]} 4. Nc3 {[%emt 0:00:03]} Bb4 {[%emt 0:00:12]} 5. Bg5 {[%emt 0:00:15]} h6 {[%emt 0:00:31]} 6. Bxf6 {[%emt 0:00:10]} Qxf6 {[%emt 0:00:06]} 7. Qa4+ {[%emt 0:00:14]} Nc6 {[%emt 0:00:06]} 8. e3 {[%emt 0:00:04]} O-O {[%emt 0:00:33]} 9. Be2 {[%emt 0:00:11]} dxc4 {[%emt 0:01:17]} 10. O-O {[%emt 0:00:34]} Bd7 {[%emt 0:00:22]} 11. Bxc4 {[%emt 0:03:02]} Bxc3 {[%emt 0:01:38]} 12. bxc3 {[%emt 0:00:07]} Rfd8 {[%emt 0:00:08]} 13. Qc2 {[%emt 0:10:59]} Na5 {[%emt 0:01:20]} 14. Bd3 {[%emt 0:00:18]} c5 {[%emt 0:00:12]} 15. Ne5 {[%emt 0:01:20]} Be8 {[%emt 0:00:47]} 16. Qe2 {[%emt 0:03:17]} Rac8 {[%emt 0:03:10]} 17. f4 {[%emt 0:03:57]} Qe7 {[%emt 0:01:48]} 18. Rf3 {[%emt 0:13:42]} cxd4 {[%emt 0:18:34]} 19. exd4 {[%emt 0:15:35]} Rc7 {[%emt 0:10:53]} 20. g4 {[%emt 0:11:34]} Rxc3 {[%emt 0:22:03]} 21. Bh7+ {[%emt 0:03:39]} Kxh7 {[%emt 0:00:03]} 22. Rxc3 {[%emt 0:00:09]} Qd6 {[%emt 0:09:54]} 23. Rd1 {[%emt 0:04:29]} f6 {[%emt 0:01:49]} 24. Nc4 {[%emt 0:11:47]} Nxc4 {[%emt 0:00:55]} 25. Rxc4 {[%emt 0:00:06]} Bc6 {[%emt 0:09:04]} 26. d5 {[%emt 0:03:47]} Bxd5 {[%emt 0:00:35]} 27. Rcd4 {[%emt 0:00:30]} Qb6 {[%emt 0:00:44]} 28. Qf2 {[%emt 0:00:20]} Rc8 {[%emt 0:02:02]} 29. f5 {[%emt 0:00:42]} Bxa2 {[%emt 0:03:24]} 30. g5 {[%emt 0:07:36]} hxg5 {[%emt 0:07:05]} 31. h4 {[%emt 0:05:26]} g4 {[%emt 0:02:20]} 32. h5 {[%emt 0:01:29]} Bd5 {[%emt 0:03:25]} 33. h6 {[%emt 0:00:32]} Rc3 {[%emt 0:00:48]} 34. Rxg4 {[%emt 0:00:30]} Qxf2+ {[%emt 0:00:26]} 35. Kxf2 {[%emt 0:00:02]} Rf3+ {[%emt 0:00:31]} 36. Kg1 {[%emt 0:00:58]} Rxf5 {[%emt 0:00:34]} 37. Rxg7+ {[%emt 0:00:32]} Kxh6 {[%emt 0:00:04]} 38. Rc7 {[%emt 0:00:29]} a5 {[%emt 0:00:56]} 39. Ra1 {[%emt 0:00:33]} Bc6 {[%emt 0:00:12]} 40. Kh2 {[%emt 0:00:00]} a4 {[%emt 0:00:00]} 41. Kg3 {[%emt 0:01:04]} Rf3+ {[%emt 0:03:10]} 42. Kg4 {[%emt 0:00:17]} f5+ {[%emt 0:00:15]} 43. Kh4 {[%emt 0:00:01]} Rf4+ {[%emt 0:00:29]} 44. Kg3 {[%emt 0:00:07]} Rg4+ {[%emt 0:00:23]} 45. Kh3 {[%emt 0:00:02]} Bg2+ {[%emt 0:01:28]} 46. Kh2 {[%emt 0:00:02]} Bd5 {[%emt 0:00:14]} 47. Rc5 {[%emt 0:01:29]} Kg5 {[%emt 0:02:44]} 48. Ra3 {[%emt 0:00:27]} Kf6 {[%emt 0:01:14]} 49. Kh3 {[%emt 0:00:21]} Rb4 {[%emt 0:00:41]} 50. Ra1 {[%emt 0:00:31]} Rb3+ {[%emt 0:00:34]} 51. Kh2 {[%emt 0:00:31]} a3 {[%emt 0:00:10]} 52. Ra5 {[%emt 0:00:09]} Rb2+ {[%emt 0:00:04]} 53. Kg3 {[%emt 0:00:05]} a2 {[%emt 0:00:07]} 0-1

[Event "22nd ETCC Women 2019"]
[Site "Batumi"]
[Date "2019.10.28"]
[Round "5.22"]
[White "Heinatz, Gundula"]
[Black "Toma, Katarzyna"]
[Result "1/2-1/2"]
[ECO "A48"]
[WhiteElo "2175"]
[BlackElo "2272"]
[Annotator "NA"]
[PlyCount "86"]
[EventDate "2019.10.24"]
[EventType "team-tourn"]
[EventCountry "GEO"]
[SourceTitle "playchess.com"]
[Source "ChessBase"]
[SourceQuality "1"]
[WhiteTeam "Switzerland"]
[BlackTeam "England"]
[WhiteTeamCountry "SUI"]
[BlackTeamCountry "ENG"]
[TimeControl "40/5400+30:1800+30"]

1. d4 {[%emt 0:00:00]} Nf6 {[%emt 0:00:00]} 2. Nf3 {[%emt 0:00:00]} g6 {[%emt 0:00:00]} 3. Bg5 {[%emt 0:00:06]} Bg7 {[%emt 0:00:00]} 4. Nbd2 {[%emt 0:00:38]} O-O {[%emt 0:00:37]} 5. c3 {[%emt 0:03:26]} d6 {[%emt 0:01:52]} 6. e4 {[%emt 0:01:12]} c5 {[%emt 0:01:12]} 7. Be2 {[%emt 0:02:46]} cxd4 {[%emt 0:04:34]} 8. cxd4 {[%emt 0:00:24]} d5 {[%emt 0:00:12]} 9. e5 {[%emt 0:05:24]} Ne4 {[%emt 0:00:07]} 10. Be3 {[%emt 0:00:59]} Nc6 {[%emt 0:02:48]} 11. O-O {[%emt 0:01:09]} Be6 {[%emt 0:18:43]} 12. a3 {[%emt 0:04:15]} f6 {[%emt 0:07:07]} 13. exf6 {[%emt 0:12:40]} exf6 {[%emt 0:00:05]} 14. Bb5 {[%emt 0:01:21]} Qd6 {[%emt 0:03:49]} 15. Bxc6 {[%emt 0:11:35]} bxc6 {[%emt 0:10:18]} 16. Rc1 {[%emt 0:02:22]} f5 {[%emt 0:09:09]} 17. Ne5 {[%emt 0:05:28]} f4 {[%emt 0:17:14]} 18. Rxc6 {[%emt 0:04:28]} Qe7 {[%emt 0:00:05]} 19. Nxe4 {[%emt 0:00:12]} dxe4 {[%emt 0:00:38]} 20. Bd2 {[%emt 0:00:17]} Bd5 {[%emt 0:00:19]} 21. Rc5 {[%emt 0:07:56]} Rad8 {[%emt 0:06:18]} 22. Bb4 {[%emt 0:05:08]} Qe6 {[%emt 0:02:03]} 23. Re1 {[%emt 0:12:11]} f3 {[%emt 0:04:55]} 24. Rxd5 {[%emt 0:00:13]} Qxd5 {[%emt 0:00:35]} 25. Bxf8 {[%emt 0:00:58]} Bxe5 {[%emt 0:01:35]} 26. Be7 {[%emt 0:12:43]} Rd7 {[%emt 0:00:05]} 27. Qc2 {[%emt 0:01:03]} Rc7 {[%emt 0:05:59]} 28. Qa4 {[%emt 0:01:29]} Bxh2+ {[%emt 0:00:16]} 29. Kxh2 {[%emt 0:00:55]} Rxe7 {[%emt 0:00:14]} 30. gxf3 {[%emt 0:00:58]} Qh5+ {[%emt 0:01:36]} 31. Kg1 {[%emt 0:00:13]} Qxf3 {[%emt 0:00:40]} 32. Re3 {[%emt 0:00:52]} Qg4+ {[%emt 0:00:25]} 33. Rg3 {[%emt 0:00:12]} Qf4 {[%emt 0:01:27]} 34. Qb3+ {[%emt 0:00:32]} Kg7 {[%emt 0:00:12]} 35. Qe3 {[%emt 0:01:08]} Qd6 {[%emt 0:00:55]} 36. b4 {[%emt 0:00:17]} Qe6 {[%emt 0:00:58]} 37. Qc3 {[%emt 0:00:56]} Rd7 {[%emt 0:00:26]} 38. d5+ {[%emt 0:00:40]} Qf6 {[%emt 0:00:04]} 39. Qc6 {[%emt 0:00:58]} Qd6 {[%emt 0:00:44]} 40. Re3 {[%emt 0:00:00]} Qxd5 {[%emt 0:00:00]} 41. Qxd5 {[%emt 0:00:52]} Rxd5 {[%emt 0:00:39]} 42. Rxe4 {[%emt 0:00:04]} Kf6 {[%emt 0:00:49]} 43. Kg2 {[%emt 0:04:15]} h5 {[%emt 0:03:54]} 1/2-1/2

[Event "22nd ETCC Women 2019"]
[Site "Batumi"]
[Date "2019.10.28"]
[Round "5.23"]
[White "Matnadze, Ana"]
[Black "Khukhashvili, Sopiko"]
[Result "0-1"]
[ECO "A06"]
[WhiteElo "2383"]
[BlackElo "2341"]
[Annotator "NA"]
[PlyCount "108"]
[EventDate "2019.10.24"]
[EventType "team-tourn"]
[EventCountry "GEO"]
[SourceTitle "playchess.com"]
[Source "ChessBase"]
[SourceQuality "1"]
[WhiteTeam "Spain"]
[BlackTeam "Georgia"]
[WhiteTeamCountry "ESP"]
[BlackTeamCountry "GEO"]
[TimeControl "40/5400+30:1800+30"]

1. Nf3 {[%emt 0:00:00]} d5 {[%emt 0:00:00]} 2. b3 {[%emt 0:00:09]} c5 {[%emt 0:00:32]} 3. Bb2 {[%emt 0:00:07]} Nc6 {[%emt 0:00:20]} 4. g3 {[%emt 0:01:56]} d4 {[%emt 0:02:48]} 5. Bg2 {[%emt 0:00:56]} e5 {[%emt 0:00:10]} 6. O-O {[%emt 0:00:57]} Be7 {[%emt 0:02:33]} 7. e4 {[%emt 0:01:59]} Bg4 {[%emt 0:02:31]} 8. h3 {[%emt 0:01:35]} Be6 {[%emt 0:00:03]} 9. d3 {[%emt 0:04:15]} g5 {[%emt 0:03:49]} 10. Nh2 {[%emt 0:16:09]} h5 {[%emt 0:02:44]} 11. f3 {[%emt 0:13:35]} Bd6 {[%emt 0:03:12]} 12. Bc1 {[%emt 0:01:41]} f6 {[%emt 0:01:10]} 13. Na3 {[%emt 0:08:04]} Qd7 {[%emt 0:00:36]} 14. Nc4 {[%emt 0:00:10]} Bc7 {[%emt 0:00:07]} 15. g4 {[%emt 0:07:16]} Nge7 {[%emt 0:02:48]} 16. a4 {[%emt 0:01:11]} Ng6 {[%emt 0:00:22]} 17. Rf2 {[%emt 0:00:48]} O-O-O {[%emt 0:01:43]} 18. a5 {[%emt 0:03:02]} Bxc4 {[%emt 0:02:37]} 19. bxc4 {[%emt 0:00:07]} Bxa5 {[%emt 0:00:05]} 20. gxh5 {[%emt 0:00:56]} Nf4 {[%emt 0:02:21]} 21. Bxf4 {[%emt 0:01:48]} exf4 {[%emt 0:00:39]} 22. Ng4 {[%emt 0:01:18]} Qd6 {[%emt 0:03:23]} 23. Re2 {[%emt 0:06:00]} Bc3 {[%emt 0:00:27]} 24. e5 {[%emt 0:18:23]} fxe5 {[%emt 0:00:28]} 25. Rb1 {[%emt 0:00:36]} Rxh5 {[%emt 0:00:27]} 26. Re4 {[%emt 0:05:26]} Rh7 {[%emt 0:01:05]} 27. Qe2 {[%emt 0:00:11]} Re7 {[%emt 0:00:18]} 28. h4 {[%emt 0:01:40]} gxh4 {[%emt 0:00:39]} 29. Bh3 {[%emt 0:00:03]} Kc7 {[%emt 0:00:30]} 30. Kh2 {[%emt 0:00:32]} a6 {[%emt 0:02:18]} 31. Qf2 {[%emt 0:00:34]} Rh8 {[%emt 0:00:14]} 32. Rg1 {[%emt 0:00:40]} b5 {[%emt 0:00:25]} 33. Qf1 {[%emt 0:00:55]} Bd2 {[%emt 0:04:53]} 34. Qb1 {[%emt 0:02:13]} bxc4 {[%emt 0:01:42]} 35. Qa2 {[%emt 0:00:22]} cxd3 {[%emt 0:03:19]} 36. cxd3 {[%emt 0:00:25]} Ba5 {[%emt 0:00:17]} 37. Qc4 {[%emt 0:01:51]} Kb6 {[%emt 0:01:12]} 38. Re2 {[%emt 0:00:16]} Bb4 {[%emt 0:00:21]} 39. Nf2 {[%emt 0:00:28]} Rd8 {[%emt 0:00:53]} 40. Bf5 {[%emt 0:00:00]} Qd5 {[%emt 0:00:00]} 41. Qc2 {[%emt 0:05:58]} Na5 {[%emt 0:06:31]} 42. Rg6+ {[%emt 0:04:47]} Ka7 {[%emt 0:00:28]} 43. Ne4 {[%emt 0:01:31]} c4 {[%emt 0:02:09]} 44. Nf6 {[%emt 0:14:52]} Qb5 {[%emt 0:02:43]} 45. Reg2 {[%emt 0:03:45]} Be1 {[%emt 0:01:39]} 46. Kh3 {[%emt 0:01:18]} Bg3 {[%emt 0:01:02]} 47. Qa2 {[%emt 0:01:07]} c3 {[%emt 0:02:01]} 48. Be4 {[%emt 0:01:04]} Nb3 {[%emt 0:04:59]} 49. Qa3 {[%emt 0:00:33]} Nc5 {[%emt 0:01:39]} 50. Ra2 {[%emt 0:00:14]} Rd6 {[%emt 0:02:30]} 51. Rg8 {[%emt 0:00:18]} Nxe4 {[%emt 0:01:48]} 52. Nxe4 {[%emt 0:01:13]} Qd7+ {[%emt 0:00:23]} 53. Rg4 {[%emt 0:00:42]} Rc6 {[%emt 0:00:33]} 54. Nc5 {[%emt 0:00:25]} Qd6 {[%emt 0:00:28]} 0-1